[Event "Titled Tuesday Blitz February 22 Late 2022"]
[White "Jones, Gawain C B"]
[Black "Loay, Sameer"]
[WhiteFideId "409561"]
[BlackFideId "8104239"]
[WhiteElo "2824"]
[BlackElo "2550"]
[Result "1-0"]
[Round "02"]
[TimeControl "180+1"]
[Date "2022.02.23"]
[WhiteClock "0:00:42"]
[BlackClock "0:00:43"]

1. Nf3 {[%clk 0:03:00]}  Nf6 {[%clk 0:03:00]} 2. g3 {[%clk 0:03:01]}  g6 {[%clk 0:03:00]} 3. b3 {[%clk 0:03:01]}  Bg7 {[%clk 0:03:01]} 4. Bb2 {[%clk 0:03:02]}  O-O {[%clk 0:03:01]} 5. Bg2 {[%clk 0:03:02]}  d6 {[%clk 0:03:02]} 6. d4 {[%clk 0:03:01]}  Nbd7 {[%clk 0:03:02]} 7. O-O {[%clk 0:02:52]}  e5 {[%clk 0:03:02]} 8. dxe5 {[%clk 0:02:50]}  Ng4 {[%clk 0:03:03]} 9. Qd2 {[%clk 0:02:51]}  Ngxe5 {[%clk 0:03:02]} 10. Nxe5 {[%clk 0:02:49]}  dxe5 {[%clk 0:03:03]} 11. Rd1 {[%clk 0:02:42]}  Re8 {[%clk 0:03:03]} 12. a4 {[%clk 0:02:37]}  c6 {[%clk 0:03:02]} 13. Na3 {[%clk 0:02:35]}  Qc7 {[%clk 0:02:56]} 14. Nc4 {[%clk 0:02:34]}  Nf8 {[%clk 0:02:54]} 15. Qd6 {[%clk 0:02:23]}  Qxd6 {[%clk 0:02:44]} 16. Nxd6 {[%clk 0:02:24]}  Rd8 {[%clk 0:02:45]} 17. a5 {[%clk 0:02:24]}  a6 {[%clk 0:02:39]} 18. Nc4 {[%clk 0:02:10]}  Be6 {[%clk 0:02:37]} 19. Nxe5 {[%clk 0:02:04]}  Nd7 {[%clk 0:02:25]} 20. Nd3 {[%clk 0:01:57]}  Bxb2 {[%clk 0:02:16]} 21. Nxb2 {[%clk 0:01:58]}  Bg4 {[%clk 0:02:16]} 22. f3 {[%clk 0:01:55]}  Be6 {[%clk 0:02:13]} 23. Na4 {[%clk 0:01:51]}  Re8 {[%clk 0:02:12]} 24. Kf2 {[%clk 0:01:51]}  f5 {[%clk 0:02:12]} 25. Rd6 {[%clk 0:01:49]}  Ne5 {[%clk 0:02:05]} 26. Nc5 {[%clk 0:01:44]}  Bc8 {[%clk 0:01:51]} 27. Rad1 {[%clk 0:01:39]}  Nf7 {[%clk 0:01:51]} 28. R6d4 {[%clk 0:01:35]}  Kg7 {[%clk 0:01:42]} 29. e3 {[%clk 0:01:34]}  Re5 {[%clk 0:01:42]} 30. b4 {[%clk 0:01:32]}  Re7 {[%clk 0:01:34]} 31. Bf1 {[%clk 0:01:22]}  Ne5 {[%clk 0:01:34]} 32. h3 {[%clk 0:01:18]}  g5 {[%clk 0:01:32]} 33. f4 {[%clk 0:01:17]}  gxf4 {[%clk 0:01:32]} 34. gxf4 {[%clk 0:01:12]}  Ng6 {[%clk 0:01:32]} 35. Rd8 {[%clk 0:01:12]}  Nh8 {[%clk 0:01:03]} 36. Bc4 {[%clk 0:01:08]}  Nf7 {[%clk 0:01:03]} 37. Rg1+ {[%clk 0:01:07]}  Kf6 {[%clk 0:00:58]} 38. Rf8 {[%clk 0:01:02]}  Be6 {[%clk 0:00:49]} 39. Nxe6 {[%clk 0:00:52]}  Rxf8 {[%clk 0:00:48]} 40. Nxf8 {[%clk 0:00:53]}  Nd6 {[%clk 0:00:48]} 41. Bg8 {[%clk 0:00:44]}  Ne4+ {[%clk 0:00:46]} 42. Kf3 {[%clk 0:00:44]}  Nd2+ {[%clk 0:00:46]} 43. Ke2 {[%clk 0:00:44]}  Nc4 {[%clk 0:00:47]} 44. Nxh7+ {[%clk 0:00:42]}  Rxh7 {[%clk 0:00:43]} 45. Bxh7 {[%clk 0:00:42]} 1-0


[Site "https://www.chess.com"]

[Event "Titled Tuesday Blitz February 22 Late 2022"]
[White "Kamsky, Gata"]
[Black "Velikanov, Alexander"]
[WhiteFideId "2000024"]
[BlackFideId "2039290"]
[WhiteElo "2645"]
[BlackElo "2259"]
[Result "1-0"]
[Round "02"]
[TimeControl "180+1"]
[Date "2022.02.22"]
[WhiteClock "0:00:40"]
[BlackClock "0:00:02"]

1. d4 {[%clk 0:03:00]}  Nf6 {[%clk 0:02:57]} 2. Nf3 {[%clk 0:03:00]}  c5 {[%clk 0:02:54]} 3. d5 {[%clk 0:02:58]}  a6 {[%clk 0:02:53]} 4. c4 {[%clk 0:02:52]}  e6 {[%clk 0:02:46]} 5. Nc3 {[%clk 0:02:52]}  b5 {[%clk 0:02:29]} 6. e4 {[%clk 0:02:46]}  b4 {[%clk 0:02:23]} 7. e5 {[%clk 0:02:45]}  bxc3 {[%clk 0:02:21]} 8. exf6 {[%clk 0:02:45]}  Qxf6 {[%clk 0:02:14]} 9. bxc3 {[%clk 0:02:42]}  Be7 {[%clk 0:02:01]} 10. Qc2 {[%clk 0:02:38]}  h6 {[%clk 0:01:47]} 11. Bd3 {[%clk 0:02:37]}  O-O {[%clk 0:01:46]} 12. O-O {[%clk 0:02:34]}  d6 {[%clk 0:01:46]} 13. Nd2 {[%clk 0:02:24]}  Bd8 {[%clk 0:01:36]} 14. f4 {[%clk 0:02:19]}  Ba5 {[%clk 0:01:22]} 15. Ne4 {[%clk 0:02:18]}  Qe7 {[%clk 0:01:22]} 16. Bd2 {[%clk 0:02:06]}  Nd7 {[%clk 0:01:10]} 17. Rae1 {[%clk 0:02:04]}  Nf6 {[%clk 0:00:58]} 18. Qa4 {[%clk 0:01:13]}  Bc7 {[%clk 0:00:52]} 19. f5 {[%clk 0:01:03]}  Nxe4 {[%clk 0:00:28]} 20. Bxe4 {[%clk 0:01:01]}  exf5 {[%clk 0:00:20]} 21. Bxf5 {[%clk 0:00:59]}  Qd8 {[%clk 0:00:19]} 22. Bd3 {[%clk 0:00:52]}  Bd7 {[%clk 0:00:15]} 23. Qd1 {[%clk 0:00:52]}  Qh4 {[%clk 0:00:11]} 24. Rf4 {[%clk 0:00:49]}  Qg5 {[%clk 0:00:10]} 25. Rfe4 {[%clk 0:00:43]}  Qd8 {[%clk 0:00:07]} 26. Qh5 {[%clk 0:00:42]}  Rb8 {[%clk 0:00:03]} 27. Bxh6 {[%clk 0:00:40]}  gxh6 {[%clk 0:00:02]} 28. Qxh6 {[%clk 0:00:40]} 1-0


[Site "https://www.chess.com"]

[Event "Titled Tuesday Blitz February 22 Late 2022"]
[White "Karttunen, Mika"]
[Black "Dreev, Aleksey"]
[WhiteFideId "502081"]
[BlackFideId "4100107"]
[WhiteElo "2572"]
[BlackElo "2833"]
[Result "0-1"]
[Round "02"]
[TimeControl "180+1"]
[Date "2022.02.23"]
[WhiteClock "0:00:01"]
[BlackClock "0:00:13"]

1. e4 {[%clk 0:03:00]}  c5 {[%clk 0:02:59]} 2. Nf3 {[%clk 0:03:00]}  Nf6 {[%clk 0:03:00]} 3. Nc3 {[%clk 0:02:59]}  d5 {[%clk 0:03:00]} 4. e5 {[%clk 0:02:54]}  Nfd7 {[%clk 0:03:00]} 5. d3 {[%clk 0:01:45]}  e6 {[%clk 0:02:55]} 6. g3 {[%clk 0:01:43]}  Nc6 {[%clk 0:02:54]} 7. Qe2 {[%clk 0:01:43]}  b5 {[%clk 0:02:29]} 8. Bg2 {[%clk 0:01:40]}  b4 {[%clk 0:02:29]} 9. Nd1 {[%clk 0:01:39]}  a5 {[%clk 0:02:26]} 10. O-O {[%clk 0:01:38]}  Ba6 {[%clk 0:02:26]} 11. h4 {[%clk 0:01:24]}  Be7 {[%clk 0:02:21]} 12. h5 {[%clk 0:01:19]}  c4 {[%clk 0:02:03]} 13. Bf4 {[%clk 0:00:41]}  cxd3 {[%clk 0:02:00]} 14. cxd3 {[%clk 0:00:41]}  Nc5 {[%clk 0:02:01]} 15. Ne1 {[%clk 0:00:41]}  Nd4 {[%clk 0:01:59]} 16. Qd2 {[%clk 0:00:36]}  Ncb3 {[%clk 0:01:51]} 17. axb3 {[%clk 0:00:36]}  Nxb3 {[%clk 0:01:51]} 18. Qc2 {[%clk 0:00:36]}  Nxa1 {[%clk 0:01:47]} 19. Qa4+ {[%clk 0:00:36]}  Qd7 {[%clk 0:01:47]} 20. Qxa1 {[%clk 0:00:37]}  a4 {[%clk 0:01:45]} 21. Ne3 {[%clk 0:00:27]}  h6 {[%clk 0:01:41]} 22. N3c2 {[%clk 0:00:26]}  O-O {[%clk 0:01:39]} 23. Nd4 {[%clk 0:00:24]}  a3 {[%clk 0:01:37]} 24. b3 {[%clk 0:00:17]}  Rfc8 {[%clk 0:01:36]} 25. Bd2 {[%clk 0:00:16]}  Qa7 {[%clk 0:01:29]} 26. Ndc2 {[%clk 0:00:10]}  Qb6 {[%clk 0:01:25]} 27. Qa2 {[%clk 0:00:10]}  Rc7 {[%clk 0:01:21]} 28. Bf3 {[%clk 0:00:10]}  Rac8 {[%clk 0:01:21]} 29. Bd1 {[%clk 0:00:10]}  Rc6 {[%clk 0:01:00]} 30. Kg2 {[%clk 0:00:10]}  d4 {[%clk 0:00:57]} 31. f4 {[%clk 0:00:10]}  Bb7 {[%clk 0:00:55]} 32. Kh2 {[%clk 0:00:10]}  R6c7 {[%clk 0:00:48]} 33. Qa1 {[%clk 0:00:07]}  Rxc2 {[%clk 0:00:37]} 34. Bxc2 {[%clk 0:00:07]}  Qc6 {[%clk 0:00:30]} 35. Bd1 {[%clk 0:00:06]}  Qd5 {[%clk 0:00:30]} 36. Bf3 {[%clk 0:00:06]}  Qxb3 {[%clk 0:00:26]} 37. Bxb7 {[%clk 0:00:06]}  Rc7 {[%clk 0:00:27]} 38. Be4 {[%clk 0:00:06]}  Qa4 {[%clk 0:00:27]} 39. Bxb4 {[%clk 0:00:06]}  Bxb4 {[%clk 0:00:26]} 40. Qxd4 {[%clk 0:00:05]}  Rd7 {[%clk 0:00:22]} 41. Qc4 {[%clk 0:00:04]}  Rd8 {[%clk 0:00:19]} 42. Nc2 {[%clk 0:00:04]}  a2 {[%clk 0:00:16]} 43. Nxb4 {[%clk 0:00:05]}  a1=Q {[%clk 0:00:16]} 44. Rxa1 {[%clk 0:00:05]}  Qxa1 {[%clk 0:00:17]} 45. Nc6 {[%clk 0:00:06]}  Re8 {[%clk 0:00:16]} 46. Ne7+ {[%clk 0:00:05]}  Kf8 {[%clk 0:00:15]} 47. Nc6 {[%clk 0:00:04]}  Qb2+ {[%clk 0:00:15]} 48. Kh3 {[%clk 0:00:04]}  Qa1 {[%clk 0:00:14]} 49. Qc5+ {[%clk 0:00:04]}  Kg8 {[%clk 0:00:14]} 50. Ne7+ {[%clk 0:00:04]}  Kh8 {[%clk 0:00:15]} 51. Qc6 {[%clk 0:00:04]}  Rf8 {[%clk 0:00:15]} 52. Qd6 {[%clk 0:00:01]}  Re8 {[%clk 0:00:13]} 53. Nc6 {[%clk 0:00:01]}  Rg8 {[%clk 0:00:12]} 54. Qd7 {[%clk 0:00:01]}  Qf1+ {[%clk 0:00:12]} 55. Bg2 {[%clk 0:00:01]}  Qe2 {[%clk 0:00:13]} 56. d4 {[%clk 0:00:01]}  Qxh5# {[%clk 0:00:13]} 0-1


[Site "https://www.chess.com"]

[Event "Titled Tuesday Blitz February 22 Late 2022"]
[White "Kim, Sergey"]
[Black "Abdrlauf, Elham"]
[WhiteFideId "13700570"]
[BlackFideId "1533533"]
[WhiteElo "2643"]
[BlackElo "2334"]
[Result "0-1"]
[Round "02"]
[TimeControl "180+1"]
[Date "2022.02.22"]
[WhiteClock "0:00:09"]
[BlackClock "0:00:04"]

1. d4 {[%clk 0:02:53]}  Nf6 {[%clk 0:02:59]} 2. c4 {[%clk 0:02:53]}  e6 {[%clk 0:02:57]} 3. Nc3 {[%clk 0:02:53]}  d5 {[%clk 0:02:58]} 4. Nf3 {[%clk 0:02:53]}  c6 {[%clk 0:02:56]} 5. e3 {[%clk 0:02:52]}  Nbd7 {[%clk 0:02:57]} 6. Bd3 {[%clk 0:02:52]}  dxc4 {[%clk 0:02:57]} 7. Bxc4 {[%clk 0:02:52]}  b5 {[%clk 0:02:58]} 8. Bb3 {[%clk 0:02:52]}  Bb7 {[%clk 0:02:59]} 9. O-O {[%clk 0:02:53]}  Be7 {[%clk 0:02:59]} 10. Qe2 {[%clk 0:02:53]}  a6 {[%clk 0:02:59]} 11. e4 {[%clk 0:02:50]}  c5 {[%clk 0:02:59]} 12. e5 {[%clk 0:02:49]}  Ng4 {[%clk 0:02:46]} 13. d5 {[%clk 0:02:46]}  c4 {[%clk 0:02:42]} 14. Bc2 {[%clk 0:02:31]}  exd5 {[%clk 0:02:10]} 15. e6 {[%clk 0:02:30]}  fxe6 {[%clk 0:01:25]} 16. Qxe6 {[%clk 0:02:26]}  Ndf6 {[%clk 0:01:25]} 17. Ng5 {[%clk 0:02:10]}  Nh6 {[%clk 0:01:25]} 18. Nxh7 {[%clk 0:01:59]}  Qd7 {[%clk 0:00:58]} 19. Nxf6+ {[%clk 0:01:32]}  gxf6 {[%clk 0:00:59]} 20. Bg6+ {[%clk 0:01:11]}  Kd8 {[%clk 0:00:59]} 21. Qb6+ {[%clk 0:01:08]}  Qc7 {[%clk 0:00:53]} 22. Qe6 {[%clk 0:00:52]}  Ng4 {[%clk 0:00:28]} 23. g3 {[%clk 0:00:51]}  Nxh2 {[%clk 0:00:28]} 24. Bf4 {[%clk 0:00:46]}  Qc6 {[%clk 0:00:16]} 25. Qxc6 {[%clk 0:00:34]}  Bxc6 {[%clk 0:00:17]} 26. Rfd1 {[%clk 0:00:34]}  Nf3+ {[%clk 0:00:07]} 27. Kg2 {[%clk 0:00:34]}  d4 {[%clk 0:00:07]} 28. Be4 {[%clk 0:00:32]}  Bxe4 {[%clk 0:00:05]} 29. Nxe4 {[%clk 0:00:32]}  Ne5 {[%clk 0:00:05]} 30. Rxd4+ {[%clk 0:00:31]}  Ke8 {[%clk 0:00:06]} 31. Rad1 {[%clk 0:00:29]}  Kf7 {[%clk 0:00:06]} 32. Bxe5 {[%clk 0:00:29]}  fxe5 {[%clk 0:00:07]} 33. Rd7 {[%clk 0:00:26]}  Rhd8 {[%clk 0:00:05]} 34. Rxd8 {[%clk 0:00:24]}  Rxd8 {[%clk 0:00:06]} 35. Rxd8 {[%clk 0:00:23]}  Bxd8 {[%clk 0:00:07]} 36. Kf3 {[%clk 0:00:24]}  Be7 {[%clk 0:00:06]} 37. Ke2 {[%clk 0:00:22]}  Ke6 {[%clk 0:00:07]} 38. f4 {[%clk 0:00:19]}  Kd5 {[%clk 0:00:05]} 39. Nc3+ {[%clk 0:00:19]}  Kd4 {[%clk 0:00:04]} 40. f5 {[%clk 0:00:18]}  b4 {[%clk 0:00:03]} 41. Nd1 {[%clk 0:00:16]}  e4 {[%clk 0:00:03]} 42. Ne3 {[%clk 0:00:15]}  Bg5 {[%clk 0:00:03]} 43. Nc2+ {[%clk 0:00:15]}  Kc5 {[%clk 0:00:03]} 44. g4 {[%clk 0:00:14]}  a5 {[%clk 0:00:03]} 45. b3 {[%clk 0:00:13]}  a4 {[%clk 0:00:04]} 46. bxc4 {[%clk 0:00:12]}  Kxc4 {[%clk 0:00:02]} 47. Na1 {[%clk 0:00:11]}  Kc3 {[%clk 0:00:03]} 48. f6 {[%clk 0:00:09]}  Bxf6 {[%clk 0:00:03]} 49. Ke3 {[%clk 0:00:09]}  Kb2 {[%clk 0:00:04]} 50. Kxe4 {[%clk 0:00:10]}  Kxa1 {[%clk 0:00:04]} 51. Kf5 {[%clk 0:00:09]}  Bh8 {[%clk 0:00:04]} 0-1


[Site "https://www.chess.com"]

[Event "Titled Tuesday Blitz February 22 Late 2022"]
[White "Kohler, Aran"]
[Black "Erdogdu, Mert"]
[WhiteFideId "1002856"]
[BlackFideId "6301495"]
[WhiteElo "2259"]
[BlackElo "2485"]
[Result "0-1"]
[Round "02"]
[TimeControl "180+1"]
[Date "2022.02.23"]
[WhiteClock "0:00:13"]
[BlackClock "0:00:12"]

1. d4 {[%clk 0:02:59]}  d5 {[%clk 0:02:59]} 2. Nf3 {[%clk 0:02:59]}  e6 {[%clk 0:02:59]} 3. Bf4 {[%clk 0:02:59]}  Bd6 {[%clk 0:02:58]} 4. Bg3 {[%clk 0:02:59]}  Nf6 {[%clk 0:02:58]} 5. e3 {[%clk 0:02:59]}  c5 {[%clk 0:02:58]} 6. c3 {[%clk 0:02:59]}  Qc7 {[%clk 0:02:58]} 7. Nbd2 {[%clk 0:02:58]}  Nbd7 {[%clk 0:02:59]} 8. Bd3 {[%clk 0:02:58]}  O-O {[%clk 0:02:59]} 9. Rc1 {[%clk 0:02:39]}  b6 {[%clk 0:02:46]} 10. Qe2 {[%clk 0:02:26]}  Bb7 {[%clk 0:02:44]} 11. O-O {[%clk 0:02:12]}  Bxg3 {[%clk 0:02:33]} 12. hxg3 {[%clk 0:02:11]}  e5 {[%clk 0:02:34]} 13. dxe5 {[%clk 0:02:09]}  Nxe5 {[%clk 0:02:35]} 14. Nxe5 {[%clk 0:02:08]}  Qxe5 {[%clk 0:02:34]} 15. Nf3 {[%clk 0:01:49]}  Qh5 {[%clk 0:02:26]} 16. Nh4 {[%clk 0:01:48]}  Qe5 {[%clk 0:02:10]} 17. Rfd1 {[%clk 0:01:30]}  Rad8 {[%clk 0:02:05]} 18. Nf3 {[%clk 0:01:28]}  Qe7 {[%clk 0:02:02]} 19. Nh4 {[%clk 0:01:27]}  g6 {[%clk 0:02:02]} 20. Ba6 {[%clk 0:01:19]}  Ba8 {[%clk 0:02:02]} 21. Nf3 {[%clk 0:01:12]}  Rd6 {[%clk 0:02:00]} 22. Bd3 {[%clk 0:01:05]}  Re8 {[%clk 0:01:58]} 23. Re1 {[%clk 0:01:05]}  Kg7 {[%clk 0:01:57]} 24. Rcd1 {[%clk 0:01:04]}  Red8 {[%clk 0:01:53]} 25. Nh2 {[%clk 0:01:00]}  Ne4 {[%clk 0:01:46]} 26. Bxe4 {[%clk 0:00:59]}  dxe4 {[%clk 0:01:45]} 27. Rxd6 {[%clk 0:00:59]}  Qxd6 {[%clk 0:01:46]} 28. Nf1 {[%clk 0:00:58]}  h5 {[%clk 0:01:42]} 29. g4 {[%clk 0:00:54]}  h4 {[%clk 0:01:42]} 30. g3 {[%clk 0:00:53]}  hxg3 {[%clk 0:01:35]} 31. Nxg3 {[%clk 0:00:53]}  Qd2 {[%clk 0:01:17]} 32. Qxd2 {[%clk 0:00:52]}  Rxd2 {[%clk 0:01:17]} 33. Re2 {[%clk 0:00:53]}  Rd1+ {[%clk 0:01:15]} 34. Kg2 {[%clk 0:00:53]}  Kf6 {[%clk 0:01:15]} 35. Nf1 {[%clk 0:00:46]}  Ke5 {[%clk 0:01:08]} 36. Rd2 {[%clk 0:00:44]}  Ra1 {[%clk 0:01:07]} 37. a3 {[%clk 0:00:43]}  Bd5 {[%clk 0:01:06]} 38. Nh2 {[%clk 0:00:42]}  f6 {[%clk 0:00:58]} 39. g5 {[%clk 0:00:39]}  f5 {[%clk 0:00:58]} 40. Nf1 {[%clk 0:00:39]}  Bc4 {[%clk 0:00:56]} 41. Ng3 {[%clk 0:00:38]}  Bd3 {[%clk 0:00:56]} 42. Ne2 {[%clk 0:00:37]}  Bxe2 {[%clk 0:00:54]} 43. Rxe2 {[%clk 0:00:36]}  Rd1 {[%clk 0:00:55]} 44. f4+ {[%clk 0:00:36]}  exf3+ {[%clk 0:00:54]} 45. Kxf3 {[%clk 0:00:37]}  Rg1 {[%clk 0:00:53]} 46. Rd2 {[%clk 0:00:36]}  Rxg5 {[%clk 0:00:51]} 47. Rd7 {[%clk 0:00:36]}  Rg1 {[%clk 0:00:49]} 48. Rxa7 {[%clk 0:00:36]}  Rb1 {[%clk 0:00:49]} 49. b4 {[%clk 0:00:36]}  Rb3 {[%clk 0:00:48]} 50. bxc5 {[%clk 0:00:32]}  bxc5 {[%clk 0:00:48]} 51. c4 {[%clk 0:00:29]}  g5 {[%clk 0:00:47]} 52. Rc7 {[%clk 0:00:27]}  Kd6 {[%clk 0:00:45]} 53. Rg7 {[%clk 0:00:25]}  g4+ {[%clk 0:00:40]} 54. Kf4 {[%clk 0:00:26]}  Rxa3 {[%clk 0:00:27]} 55. Rg6+ {[%clk 0:00:24]}  Kc7 {[%clk 0:00:25]} 56. Kxf5 {[%clk 0:00:24]}  Rxe3 {[%clk 0:00:24]} 57. Rxg4 {[%clk 0:00:24]}  Kd6 {[%clk 0:00:24]} 58. Rg6+ {[%clk 0:00:23]}  Kc7 {[%clk 0:00:23]} 59. Rg4 {[%clk 0:00:23]}  Kb6 {[%clk 0:00:22]} 60. Re4 {[%clk 0:00:24]}  Rd3 {[%clk 0:00:10]} 61. Ke5 {[%clk 0:00:23]}  Ka5 {[%clk 0:00:10]} 62. Rh4 {[%clk 0:00:22]}  Kb4 {[%clk 0:00:11]} 63. Rg4 {[%clk 0:00:21]}  Kc3 {[%clk 0:00:10]} 64. Rh4 {[%clk 0:00:20]}  Kb4 {[%clk 0:00:07]} 65. Rg4 {[%clk 0:00:20]}  Rd8 {[%clk 0:00:07]} 66. Ke6 {[%clk 0:00:20]}  Rd1 {[%clk 0:00:07]} 67. Ke5 {[%clk 0:00:20]}  Re1+ {[%clk 0:00:07]} 68. Kd5 {[%clk 0:00:20]}  Rd1+ {[%clk 0:00:07]} 69. Kc6 {[%clk 0:00:20]}  Rd4 {[%clk 0:00:08]} 70. Rg5 {[%clk 0:00:18]}  Rxc4 {[%clk 0:00:08]} 71. Kd5 {[%clk 0:00:18]}  Rc2 {[%clk 0:00:08]} 72. Ke4 {[%clk 0:00:18]}  Rd2 {[%clk 0:00:08]} 73. Ke3 {[%clk 0:00:18]}  Rd8 {[%clk 0:00:08]} 74. Rg7 {[%clk 0:00:18]}  c4 {[%clk 0:00:08]} 75. Rb7+ {[%clk 0:00:18]}  Kc3 {[%clk 0:00:09]} 76. Rb6 {[%clk 0:00:18]}  Re8+ {[%clk 0:00:09]} 77. Kf2 {[%clk 0:00:17]}  Kd2 {[%clk 0:00:09]} 78. Rd6+ {[%clk 0:00:17]}  Kc2 {[%clk 0:00:09]} 79. Rc6 {[%clk 0:00:17]}  c3 {[%clk 0:00:10]} 80. Kf1 {[%clk 0:00:17]}  Kd2 {[%clk 0:00:10]} 81. Kf2 {[%clk 0:00:17]}  Rf8+ {[%clk 0:00:10]} 82. Kg3 {[%clk 0:00:16]}  c2 {[%clk 0:00:11]} 83. Rd6+ {[%clk 0:00:16]}  Kc1 {[%clk 0:00:11]} 84. Rc6 {[%clk 0:00:16]}  Rd8 {[%clk 0:00:11]} 85. Rc4 {[%clk 0:00:14]}  Kd2 {[%clk 0:00:11]} 86. Rf4 {[%clk 0:00:14]}  c1=Q {[%clk 0:00:11]} 87. Rf2+ {[%clk 0:00:15]}  Kc3 {[%clk 0:00:12]} 88. Rf3+ {[%clk 0:00:16]}  Rd3 {[%clk 0:00:12]} 89. Rxd3+ {[%clk 0:00:15]}  Kxd3 {[%clk 0:00:13]} 90. Kg4 {[%clk 0:00:15]}  Qf1 {[%clk 0:00:13]} 91. Kg5 {[%clk 0:00:16]}  Ke4 {[%clk 0:00:13]} 92. Kh4 {[%clk 0:00:13]}  Qg2 {[%clk 0:00:11]} 93. Kh5 {[%clk 0:00:13]}  Kf5 {[%clk 0:00:12]} 94. Kh6 {[%clk 0:00:13]}  Qg6# {[%clk 0:00:12]} 0-1


[Site "https://www.chess.com"]

[Event "Titled Tuesday Blitz February 22 Late 2022"]
[White "Kosakowski, Jakub"]
[Black "Yordanov, Nikolay Plamenov"]
[WhiteFideId "1185080"]
[BlackFideId "2907445"]
[WhiteElo "2788"]
[BlackElo "2434"]
[Result "1-0"]
[Round "02"]
[TimeControl "180+1"]
[Date "2022.02.23"]
[WhiteClock "0:01:03"]
[BlackClock "0:00:23"]

1. c4 {[%clk 0:03:00]}  Nf6 {[%clk 0:02:59]} 2. Nc3 {[%clk 0:02:58]}  g6 {[%clk 0:02:59]} 3. g3 {[%clk 0:02:58]}  Bg7 {[%clk 0:02:59]} 4. Bg2 {[%clk 0:02:58]}  O-O {[%clk 0:03:00]} 5. d4 {[%clk 0:02:59]}  d6 {[%clk 0:03:00]} 6. Nf3 {[%clk 0:03:00]}  Nc6 {[%clk 0:03:00]} 7. O-O {[%clk 0:03:00]}  a6 {[%clk 0:03:01]} 8. h3 {[%clk 0:02:56]}  Rb8 {[%clk 0:02:59]} 9. e4 {[%clk 0:02:56]}  e5 {[%clk 0:02:48]} 10. d5 {[%clk 0:02:52]}  Ne7 {[%clk 0:02:48]} 11. b4 {[%clk 0:02:37]}  h6 {[%clk 0:02:43]} 12. c5 {[%clk 0:02:36]}  Nh7 {[%clk 0:02:43]} 13. a4 {[%clk 0:02:33]}  f5 {[%clk 0:02:43]} 14. Ba3 {[%clk 0:02:21]}  Nf6 {[%clk 0:02:37]} 15. Nd2 {[%clk 0:02:09]}  f4 {[%clk 0:02:34]} 16. b5 {[%clk 0:02:07]}  fxg3 {[%clk 0:02:33]} 17. fxg3 {[%clk 0:02:07]}  Kh7 {[%clk 0:02:13]} 18. b6 {[%clk 0:02:03]}  dxc5 {[%clk 0:02:04]} 19. bxc7 {[%clk 0:01:58]}  Qxc7 {[%clk 0:02:02]} 20. a5 {[%clk 0:01:51]}  Bd7 {[%clk 0:01:52]} 21. Nc4 {[%clk 0:01:51]}  Neg8 {[%clk 0:01:36]} 22. d6 {[%clk 0:01:48]}  Qd8 {[%clk 0:01:29]} 23. Nxe5 {[%clk 0:01:45]}  Nh5 {[%clk 0:01:28]} 24. Nxd7 {[%clk 0:01:37]}  Qxd7 {[%clk 0:01:29]} 25. Qd3 {[%clk 0:01:33]}  Bd4+ {[%clk 0:01:23]} 26. Kh1 {[%clk 0:01:31]}  Qxd6 {[%clk 0:01:23]} 27. Ne2 {[%clk 0:01:29]}  Qe5 {[%clk 0:00:58]} 28. Rab1 {[%clk 0:01:16]}  c4 {[%clk 0:00:40]} 29. Qxc4 {[%clk 0:01:03]}  Rxf1+ {[%clk 0:00:29]} 30. Rxf1 {[%clk 0:01:04]}  Nxg3+ {[%clk 0:00:27]} 31. Nxg3 {[%clk 0:01:04]}  Qxg3 {[%clk 0:00:28]} 32. Qxd4 {[%clk 0:01:04]}  Qc7 {[%clk 0:00:23]} 33. Bb2 {[%clk 0:01:03]} 1-0


[Site "https://www.chess.com"]

[Event "Titled Tuesday Blitz February 22 Late 2022"]
[White "Krishnan, Varun"]
[Black "Vifleemskaia, Svetlana"]
[WhiteFideId "5054508"]
[BlackFideId "4129490"]
[WhiteElo "2527"]
[BlackElo "1901"]
[Result "0-1"]
[Round "02"]
[TimeControl "180+1"]
[Date "2022.02.23"]
[WhiteClock "0:00:03"]
[BlackClock "0:00:12"]

1. e4 {[%clk 0:01:57]}  e5 {[%clk 0:02:54]} 2. Nf3 {[%clk 0:01:56]}  Nc6 {[%clk 0:02:54]} 3. Bb5 {[%clk 0:01:57]}  a6 {[%clk 0:02:52]} 4. Ba4 {[%clk 0:01:57]}  Nf6 {[%clk 0:02:50]} 5. O-O {[%clk 0:01:56]}  b5 {[%clk 0:02:49]} 6. Bb3 {[%clk 0:01:55]}  Be7 {[%clk 0:02:50]} 7. Re1 {[%clk 0:01:50]}  d6 {[%clk 0:02:49]} 8. c3 {[%clk 0:01:47]}  O-O {[%clk 0:02:48]} 9. h3 {[%clk 0:01:47]}  Nd7 {[%clk 0:02:42]} 10. d4 {[%clk 0:01:46]}  Bf6 {[%clk 0:02:40]} 11. Be3 {[%clk 0:01:42]}  Na5 {[%clk 0:02:38]} 12. Bc2 {[%clk 0:01:42]}  Nc4 {[%clk 0:02:39]} 13. b3 {[%clk 0:01:42]}  Nxe3 {[%clk 0:02:38]} 14. fxe3 {[%clk 0:01:42]}  c5 {[%clk 0:02:32]} 15. Nbd2 {[%clk 0:01:41]}  Re8 {[%clk 0:02:14]} 16. Nf1 {[%clk 0:01:39]}  g6 {[%clk 0:02:05]} 17. N3h2 {[%clk 0:01:27]}  Bg7 {[%clk 0:02:02]} 18. Ng3 {[%clk 0:01:23]}  exd4 {[%clk 0:02:01]} 19. exd4 {[%clk 0:01:23]}  cxd4 {[%clk 0:01:57]} 20. cxd4 {[%clk 0:01:23]}  Qb6 {[%clk 0:01:57]} 21. Nf3 {[%clk 0:01:23]}  Ne5 {[%clk 0:01:54]} 22. Ne2 {[%clk 0:01:13]}  Nxf3+ {[%clk 0:01:39]} 23. gxf3 {[%clk 0:01:14]}  Bxh3 {[%clk 0:01:39]} 24. Qd3 {[%clk 0:01:14]}  Rac8 {[%clk 0:01:35]} 25. Rad1 {[%clk 0:01:12]}  d5 {[%clk 0:01:31]} 26. Nf4 {[%clk 0:01:04]}  dxe4 {[%clk 0:01:21]} 27. fxe4 {[%clk 0:01:03]}  Qc7 {[%clk 0:01:08]} 28. Nxh3 {[%clk 0:00:46]}  Qxc2 {[%clk 0:01:06]} 29. Rd2 {[%clk 0:00:32]}  Qc3 {[%clk 0:00:55]} 30. Nf4 {[%clk 0:00:23]}  Qxd3 {[%clk 0:00:39]} 31. Rxd3 {[%clk 0:00:21]}  Rcd8 {[%clk 0:00:39]} 32. d5 {[%clk 0:00:11]}  Be5 {[%clk 0:00:35]} 33. Ne2 {[%clk 0:00:10]}  f5 {[%clk 0:00:31]} 34. Nd4 {[%clk 0:00:10]}  fxe4 {[%clk 0:00:29]} 35. Rxe4 {[%clk 0:00:09]}  Bxd4+ {[%clk 0:00:29]} 36. Rexd4 {[%clk 0:00:08]}  Rd6 {[%clk 0:00:27]} 37. Rc3 {[%clk 0:00:08]}  Red8 {[%clk 0:00:27]} 38. Rc5 {[%clk 0:00:06]}  R8d7 {[%clk 0:00:27]} 39. a4 {[%clk 0:00:05]}  bxa4 {[%clk 0:00:25]} 40. bxa4 {[%clk 0:00:06]}  Kf7 {[%clk 0:00:26]} 41. a5 {[%clk 0:00:06]}  Kf6 {[%clk 0:00:26]} 42. Rd1 {[%clk 0:00:06]}  Ke5 {[%clk 0:00:25]} 43. Rc8 {[%clk 0:00:06]}  Rxd5 {[%clk 0:00:24]} 44. Re1+ {[%clk 0:00:06]}  Kd6 {[%clk 0:00:21]} 45. Rce8 {[%clk 0:00:06]}  Rxa5 {[%clk 0:00:18]} 46. R8e6+ {[%clk 0:00:06]}  Kc7 {[%clk 0:00:17]} 47. Rc1+ {[%clk 0:00:06]}  Kd8 {[%clk 0:00:17]} 48. Rec6 {[%clk 0:00:06]}  Rad5 {[%clk 0:00:17]} 49. Rc8+ {[%clk 0:00:06]}  Ke7 {[%clk 0:00:17]} 50. Re1+ {[%clk 0:00:06]}  Kf7 {[%clk 0:00:16]} 51. Rc6 {[%clk 0:00:05]}  Rd1 {[%clk 0:00:15]} 52. Kf2 {[%clk 0:00:04]}  Rxe1 {[%clk 0:00:15]} 53. Kxe1 {[%clk 0:00:05]}  Ra7 {[%clk 0:00:15]} 54. Kf2 {[%clk 0:00:04]}  a5 {[%clk 0:00:15]} 55. Kf3 {[%clk 0:00:04]}  a4 {[%clk 0:00:15]} 56. Kf4 {[%clk 0:00:04]}  a3 {[%clk 0:00:16]} 57. Kg5 {[%clk 0:00:04]}  a2 {[%clk 0:00:16]} 58. Kh6 {[%clk 0:00:04]}  a1=Q {[%clk 0:00:16]} 59. Rf6+ {[%clk 0:00:03]}  Qxf6 {[%clk 0:00:13]} 60. Kxh7 {[%clk 0:00:03]}  Ke6+ {[%clk 0:00:13]} 61. Kg8 {[%clk 0:00:03]}  Qg7# {[%clk 0:00:12]} 0-1


[Site "https://www.chess.com"]